bitfinex-derivatives/quotes_SOLF0:USTF0_20240912
["timestamp","ask_amount","ask_price","bid_price","bid_amount"]
[1726103467762,11.46,134.09,134.04,11.46]
[1726103467963,11.46,134.09,134.05,3.3563]
[1726103469178,18.8367,134.11,134.05,11.46]
[1726103469468,1.3559,134.11,134.06,11.46]
[1726103469674,11.46,134.12,134.07,11.46]
[1726103470575,11.46,134.12,134.08,3.3555]
[1726103470970,15.18269085,134.14,134.07,11.46]
[1726103471168,11.46,134.14,134.07,11.46]
[1726103471672,3.75064866,134.13,134.09,3.3554]
[1726103471865,11.46,134.12,134.07,11.46]
[1726103472768,11.46,134.12,134.08,3.3556]
[1726103474873,3.75064866,134.13,134.09,3.3554]
[1726103475072,4.0451,134.18,134.01,145.6544554]
[1726103475073,4.0451,134.18,134.11,11.46]
[1726103475279,11.46,134.17,134.11,11.46]
[1726103475484,14.8136,134.17,134.12,3.3545]
[1726103475784,11.46,134.15,134.01,145.6544554]
[1726103475976,14.8139,134.15,134.11,3.3548]
[1726103476181,11.46,134.15,134.11,3.3548]
[1726103476677,11.46,134.15,134.12,3.3546]
[1726103477679,11.46,134.16,134.12,3.3546]
[1726103477881,11.46,134.16,134.13,3.3544]
[1726103478080,22.5738032,134.18,134.13,3.3544]
[1726103478479,19.2206032,134.18,134.13,3.3544]
[1726103478878,22.5738032,134.18,134.13,3.3544]
[1726103479083,19.2206032,134.18,134.14,3.354]
[1726103479286,17.9281032,134.18,134.14,3.354]
[1726103479681,17.9281032,134.18,134.15,3.3539]
[1726103479878,6.4681032,134.18,134.15,3.3539]
[1726103480284,5.0962032,134.18,134.15,3.3539]
[1726103481577,5.0962032,134.18,134.14,3.3541]
[1726103482382,1.3807,134.18,134.14,3.3541]
[1726103483095,1.3807,134.18,134.15,11.46]
[1726103484089,1.3807,134.18,134.15,14.8139]
[1726103485087,1.3504,134.22,134.15,14.8139]
[1726103485288,11.46,134.21,134.16,11.46]
[1726103485482,7.0413873,134.2,134.16,11.46]
[1726103485777,7.0413873,134.2,134.16,14.8136]
[1726103488781,3.3529,134.19,134.16,11.46]
[1726103489893,7.0413873,134.2,134.16,11.46]
[1726103490394,15.1486873,134.2,134.15,14.8138]
[1726103491890,11.46,134.17,134.12,11.46]
[1726103492489,15.22910042,134.17,134.12,11.46]
[1726103493002,3.3537,134.16,134.12,14.8146]
[1726103494801,3.3539,134.15,134.12,11.46]
[1726103496098,3.3539,134.15,134.08,4.1224]
[1726103496099,3.3542,134.14,134.1,3.3551]
[1726103496295,14.2468,134.16,134.09,11.46]
[1726103496599,17.6005,134.16,134.12,3.3546]
[1726103497305,17.6005,134.16,134.12,14.8146]
[1726103497306,9.86617317,134.16,134.12,14.8146]
[1726103498000,5.13317317,134.16,134.12,14.8146]
[1726103498210,11.46,134.18,134.13,3.3544]
[1726103498408,3.66518777,134.17,134.13,14.8144]
[1726103499114,11.46,134.18,134.13,11.46]
[1726103499613,3.81504593,134.17,134.13,14.8142]
[1726103500602,3.81504593,134.17,134.08,4.1224]
[1726103500603,11.46,134.17,134.08,4.1224]
[1726103500805,15.23590387,134.16,134.11,11.46]
[1726103501812,3.3541,134.15,134.11,14.8149]
[1726103502011,15.23590387,134.16,134.11,11.46]
[1726103502411,18.58970387,134.16,134.11,14.8147]
[1726103502611,18.58970387,134.16,134.11,11.46]
[1726103503121,18.58970387,134.16,134.11,14.8147]
[1726103503907,15.23590387,134.16,134.11,14.8147]
[1726103504509,18.58980387,134.16,134.11,14.8147]
[1726103506810,15.23590387,134.16,134.1,14.8151]
[1726103507209,3.3539,134.15,134.1,14.8151]
[1726103508008,3.3539,134.15,134.1,11.46]
[1726103508213,3.3539,134.15,134.11,3.3549]
[1726103508413,3.3539,134.15,134.11,14.8149]
[1726103510317,18.58970387,134.16,134.11,14.8149]
[1726103510510,3.77590387,134.16,134.11,14.8149]
[1726103510714,11.46,134.17,134.12,3.3546]
[1726103511219,15.15239731,134.17,134.12,3.3546]
[1726103511820,3.3537,134.16,134.12,3.3546]
[1726103512513,3.3537,134.16,134.12,14.8146]
[1726103513915,2.6845,134.22,134.13,11.46]
[1726103514115,12.65303508,134.21,134.15,11.46]
[1726103514321,3.66369026,134.2,134.16,11.46]
[1726103514521,11.46,134.21,134.16,14.8135]
[1726103514719,3.80972027,134.2,134.16,14.8135]
[1726103515215,14.8126,134.21,134.16,14.8135]
[1726103515419,3.67629434,134.2,134.16,14.8135]
[1726103516919,7.02899434,134.2,134.16,14.8135]
[1726103518118,7.02899434,134.2,134.15,3.3539]
[1726103518332,7.02899434,134.2,134.08,7.78571744]
[1726103518333,3.3529,134.19,134.13,11.46]
[1726103519126,3.3532,134.18,134.14,3.3541]
[1726103519323,15.13629434,134.2,134.14,3.3541]
[1726103519520,15.13629434,134.2,134.13,14.8143]
[1726103519722,11.46,134.18,134.13,11.46]
[1726103520327,11.46,134.17,134.08,4.1224]
[1726103520527,11.46,134.17,134.11,11.46]
[1726103520929,14.8136,134.17,134.12,3.3545]
[1726103521131,11.46,134.17,134.12,3.3545]
[1726103521325,3.3541,134.15,134.08,4.1224]
[1726103521538,3.3541,134.15,134.1,11.46]
[1726103522426,11.46,134.14,134.08,4.1224]
[1726103522627,11.46,134.14,134.09,11.46]
[1726103523335,14.8143,134.14,134.09,14.8152]
[1726103524833,14.8143,134.14,134.1,3.3551]
[1726103525228,11.46,134.14,134.11,3.3549]
[1726103525422,3.3539,134.15,134.11,3.3549]
[1726103525829,3.3543,134.14,134.09,14.8153]
[1726103526033,11.46,134.11,134.02,2.6142]
[1726103526236,3.68996509,134.11,134.07,11.46]
[1726103526442,14.8147,134.12,134.08,3.3555]
[1726103526629,3.79436992,134.11,134.07,11.46]
[1726103527127,7.14936992,134.11,134.07,11.46]
[1726103527324,7.14936992,134.11,134.06,11.46]
[1726103527739,3.355,134.11,134.06,11.46]
[1726103528940,11.46,134.12,134.07,11.46]
[1726103529636,3.76463655,134.11,134.07,11.46]
[1726103530042,3.76463655,134.11,134.07,14.8158]
[1726103530640,3.76463655,134.11,134.06,14.8161]
[1726103530831,3.76463655,134.11,134.03,1.3254]
[1726103530832,11.46,134.1,134.04,11.46]
[1726103531137,14.8152,134.1,134.04,11.46]
[1726103531337,11.46,134.1,134.04,11.46]
[1726103531640,14.8152,134.1,134.05,3.3562]
[1726103532633,14.8152,134.1,134.04,11.46]
[1726103532831,11.46,134.09,134.03,12.7854]
[1726103533127,11.46,134.09,134.04,3.3564]
[1726103533332,3.68296337,134.08,134.04,3.3564]
[1726103533841,11.46,134.09,134.03,14.8168]
[1726103534039,11.46,134.09,134.03,11.46]
[1726103534340,15.16812937,134.09,134.03,11.46]
[1726103535239,18.52372937,134.09,134.04,3.3566]
[1726103538638,18.52372937,134.09,134.05,3.3563]
[1726103538844,18.52372937,134.09,134.02,1.4057]
[1726103539045,18.52372937,134.09,134.02,12.8657]
[1726103539245,18.52372937,134.09,134.04,3.3565]
[1726103539549,3.3557,134.08,134.04,3.3565]
[1726103539747,3.3557,134.08,134.03,3.3567]
[1726103540442,14.8159,134.07,134.02,4.7628]
[1726103540743,14.8159,134.07,134.02,1.4057]
[1726103541148,3.75353954,134.06,134.02,1.4057]
[1726103541348,3.75353954,134.06,134.03,3.3567]
[1726103541849,3.75353954,134.06,134.02,12.8657]
[1726103542149,14.8157,134.08,134.02,12.8657]
[1726103542535,18.48643265,134.08,134.02,12.8657]
[1726103542739,18.48643265,134.08,134.04,3.3566]
[1726103545745,3.356,134.07,134.03,3.3568]
[1726103546547,18.48653265,134.08,134.03,3.3568]
[1726103548345,15.13073265,134.08,134.02,12.8657]
[1726103548552,3.67073265,134.08,134.04,11.46]
[1726103548751,3.3555,134.09,134.04,11.46]
[1726103548952,14.8155,134.09,134.04,11.46]
[1726103549346,18.46114039,134.09,134.05,3.3564]
[1726103549846,3.3557,134.08,134.04,11.46]
[1726103550047,3.3557,134.08,134.04,3.3566]
[1726103550652,14.8159,134.07,134.03,3.3569]
[1726103550854,11.46,134.06,134.01,11.46]
[1726103551053,11.46,134.06,134.0,11.46]
[1726103552854,14.8163,134.06,134.02,3.3571]
[1726103556445,14.8159,134.07,134.03,3.3568]
[1726103557445,3.3563,134.06,134.02,3.3571]
[1726103559655,14.8163,134.06,134.02,3.3571]
[1726103565051,11.46,134.04,133.96,1.423]
[1726103565248,11.46,134.04,133.98,11.46]
[1726103565659,11.46,134.04,134.0,3.3575]
[1726103565862,3.67911477,134.03,134.0,3.3575]
[1726103567859,7.03601477,134.03,134.0,3.3575]
[1726103569262,3.67911477,134.03,134.0,3.3575]
[1726103571667,7.03601477,134.03,134.0,3.3575]
[1726103573670,11.46,134.02,133.96,1.423]
[1726103573857,3.67911477,134.03,133.95,11.46]
[1726103573858,11.46,134.01,133.95,11.46]
[1726103574368,14.8175,134.01,133.97,3.3582]
[1726103574863,3.67911477,134.03,133.98,11.46]
[1726103575069,3.357,134.03,133.99,3.3577]
[1726103575270,3.79458351,134.02,133.99,3.3577]
[1726103576571,7.15178351,134.02,133.98,3.358]
[1726103576767,3.69839832,134.01,133.98,3.358]
[1726103577166,3.69839832,134.01,133.97,11.46]
[1726103577359,11.46,134.01,133.9,4.1188]
[1726103577563,11.46,133.98,133.92,11.46]
[1726103577966,11.46,133.98,133.94,3.3589]
[1726103580670,11.46,133.97,133.92,11.46]
[1726103580875,11.46,133.97,133.91,11.46]
[1726103581775,11.46,133.96,133.92,3.3595]
[1726103582170,11.46,133.95,133.91,3.3597]
[1726103582370,14.8188,133.96,133.9,12.8263]
[1726103583771,14.8188,133.96,133.84,2.6906]
[1726103583772,3.359,133.95,133.84,2.6906]
[1726103583970,3.72974452,133.95,133.9,11.46]
[1726103584872,3.72974452,133.95,133.92,3.3596]
[1726103586270,3.72974452,133.95,133.88,1.3908]
[1726103586271,11.46,133.95,133.89,11.46]
[1726103586578,11.46,133.93,133.88,12.8508]
[1726103587771,11.46,133.93,133.9,3.3601]
[1726103587967,11.46,133.93,133.88,1.3908]
[1726103588476,14.8194,133.93,133.89,3.3602]
[1726103588680,11.46,133.92,133.88,1.3908]
[1726103589280,11.46,133.92,133.89,3.3602]
[1726103589478,3.68343437,133.92,133.89,3.3602]
[1726103589681,11.46,133.93,133.89,3.3602]
[1726103589982,11.46,133.93,133.9,3.36]
[1726103590180,3.73011212,133.92,133.9,3.36]
[1726103590682,1.3568,133.94,133.89,11.46]
[1726103591068,1.3568,133.94,133.9,11.46]
[1726103591275,2.813,133.99,133.88,1.3908]
[1726103591276,11.46,133.98,133.92,11.46]
[1726103591567,11.46,133.96,133.92,3.3596]
[1726103591876,11.46,133.96,133.91,11.46]
[1726103592272,3.67073802,133.95,133.92,3.3596]
[1726103592675,3.67073802,133.95,133.91,11.46]
[1726103593180,3.67073802,133.95,133.93,3.3592]
[1726103593677,3.67073802,133.95,133.94,3.3592]
[1726103594568,12.8854,133.99,133.94,11.46]
[1726103594778,1.4254,133.99,133.94,11.46]
[1726103595284,1.4254,133.99,133.96,3.3586]
[1726103595868,1.4254,133.99,133.89,2.7665]
[1726103595869,4.7833,133.99,133.95,3.3589]
[1726103596281,1.4254,133.99,133.95,3.3589]
[1726103597978,11.46,134.0,133.94,11.46]
[1726103598785,14.8177,134.0,133.96,3.3586]
[1726103599284,3.3579,133.99,133.94,14.8189]
[1726103599486,14.8179,133.99,133.94,11.46]
[1726103599983,11.46,133.99,133.94,11.46]
[1726103600184,11.46,134.0,133.94,11.46]
[1726103600788,14.8177,134.0,133.96,3.3586]
[1726103600997,1.3948,134.04,133.97,11.46]
[1726103601292,1.3948,134.04,133.98,11.46]
[1726103601293,15.15185806,134.03,133.98,11.46]
[1726103602788,15.15185806,134.03,133.99,3.3577]
[1726103603391,3.3559,134.07,134.02,3.357]
[1726103603697,11.46,134.07,134.01,11.46]
[1726103605799,14.8159,134.07,134.02,3.357]
[1726103606297,11.46,134.07,134.01,11.46]
[1726103606499,11.46,134.07,134.03,3.3567]
[1726103609602,11.46,134.07,134.02,14.8171]
[1726103609810,11.46,134.07,134.02,11.46]
[1726103610404,11.46,134.07,134.03,3.3569]
[1726103611210,11.46,134.07,134.02,3.3572]
[1726103611401,11.46,134.05,134.02,3.3572]
[1726103611707,11.46,134.05,134.0,11.46]
[1726103612214,11.46,134.07,134.02,3.357]
[1726103612707,14.816,134.07,134.03,3.3567]
[1726103613105,14.8157,134.08,134.02,11.46]
[1726103614306,14.8157,134.08,133.95,3.9932]
[1726103614307,14.8157,134.08,134.04,14.8166]
[1726103615114,11.46,134.08,134.04,14.8166]
[1726103616015,11.46,134.08,134.04,3.3566]
[1726103616817,14.8157,134.08,134.04,3.3566]
[1726103622622,3.356,134.07,134.02,11.46]
[1726103623213,3.356,134.07,134.03,3.3567]
[1726103623414,14.8157,134.08,134.03,3.3567]
[1726103624019,11.46,134.08,134.02,11.46]
[1726103624519,11.46,134.08,134.04,3.3565]
[1726103625918,14.8157,134.08,134.04,3.3565]
[1726103629418,3.3559,134.07,134.03,3.3568]
[1726103629618,11.46,134.08,134.03,3.3568]
[1726103630323,14.8158,134.08,134.03,3.3568]
[1726103633129,14.8158,134.08,134.04,3.3566]
[1726103633718,14.8158,134.08,134.03,3.3568]
[1726103634421,11.46,134.06,134.0,11.46]
[1726103635120,14.8162,134.06,134.01,14.8174]
[1726103635721,14.8162,134.06,134.02,3.3571]
[1726103636825,11.46,134.06,134.02,3.3571]
[1726103637027,14.816,134.07,134.02,3.3571]
[1726103641026,3.3562,134.06,134.02,3.3571]
[1726103642327,11.46,134.04,133.97,11.46]
[1726103642524,11.46,134.03,133.97,11.46]
[1726103642726,16.56515223,134.03,133.97,11.46]
[1726103643129,3.3573,134.02,133.97,11.46]
[1726103643832,11.46,133.99,133.9,1.3165]
[1726103644036,11.46,133.99,133.92,11.46]
[1726103644336,11.46,134.0,133.94,11.46]
[1726103644529,11.46,134.0,133.95,3.3587]
[1726103644731,11.46,134.0,133.95,11.46]
[1726103645025,1.343,134.01,133.9,2.7059]
[1726103645026,1.343,134.01,133.97,3.3582]
[1726103645333,1.2969,134.02,133.98,11.46]
[1726103646634,5.10515223,134.03,133.98,11.46]
[1726103646839,5.10515223,134.03,133.98,14.8179]
[1726103649834,5.10515223,134.03,133.99,3.3579]
[1726103650048,16.56515223,134.03,133.99,3.3579]
[1726103650441,5.10515223,134.03,134.0,3.3576]
[1726103650640,5.10515223,134.03,133.99,11.46]
[1726103652040,5.10515223,134.03,133.99,14.8177]
[1726103652244,5.10515223,134.03,133.99,11.46]
[1726103652636,8.46205223,134.03,133.99,11.46]
[1726103653142,5.10515223,134.03,133.99,11.46]
[1726103653345,5.10515223,134.03,133.99,14.8177]
[1726103654944,5.10515223,134.03,134.0,3.3576]
[1726103655240,1.4044,134.03,134.0,3.3576]
[1726103655441,11.46,134.04,134.01,3.3573]
[1726103655652,11.46,134.05,134.01,3.3573]
[1726103657346,11.46,134.05,134.02,3.3571]
[1726103657551,1.3128,134.07,134.04,11.46]
[1726103657849,1.3475,134.09,134.04,11.46]
[1726103658750,4.703,134.09,134.04,14.8166]
[1726103658938,11.46,134.06,133.96,1.4138]
[1726103659140,11.46,134.06,134.0,11.46]
[1726103659446,11.46,134.05,133.98,11.46]
[1726103660035,14.8166,134.05,134.0,3.3575]
[1726103660347,14.8166,134.05,134.0,14.8175]
[1726103662647,11.46,134.05,134.01,3.3573]
[1726103663948,14.8164,134.05,134.01,3.3573]
[1726103665653,14.8164,134.05,134.0,14.8176]
[1726103666843,3.3567,134.04,134.0,3.3576]
[1726103667052,15.20104268,134.03,134.0,3.3576]
[1726103667453,15.20104268,134.03,133.99,3.3578]
[1726103668738,15.20104268,134.03,134.0,3.3576]
[1726103669754,3.3567,134.04,134.01,3.3573]
[1726103669940,11.46,134.06,134.01,11.46]
[1726103670147,14.1916,134.08,134.04,11.46]
[1726103670542,17.5473,134.08,134.04,11.46]
[1726103671245,3.3559,134.07,134.04,11.46]
[1726103671950,3.3559,134.07,134.02,11.46]
[1726103671951,3.3562,134.06,134.02,11.46]
[1726103672256,11.46,134.07,134.02,11.46]
[1726103672461,14.816,134.07,134.02,14.817]
[1726103674045,14.8163,134.06,134.01,11.46]
[1726103674244,11.46,134.06,134.01,11.46]
[1726103674457,11.46,134.07,134.04,3.3566]
[1726103675854,14.1916,134.08,134.04,3.3566]
[1726103676454,14.1916,134.08,134.05,3.3564]
[1726103676649,14.1916,134.08,134.03,11.46]
[1726103677656,14.1916,134.08,134.04,3.3565]
[1726103680456,17.5474,134.08,134.03,3.3568]
[1726103680657,11.46,134.07,134.02,11.46]
[1726103681567,11.46,134.07,134.03,3.3567]
[1726103683575,11.46,134.07,134.02,3.3571]
[1726103684457,14.816,134.07,134.02,3.3571]
[1726103685274,17.5473,134.08,134.03,14.8168]
[1726103689578,14.1916,134.08,134.04,3.3564]
[1726103690074,14.1916,134.08,133.96,1.4138]
[1726103690280,11.46,134.07,134.01,11.46]
[1726103690479,2.7316,134.08,134.03,11.46]
[1726103691479,6.0873,134.08,134.03,14.8167]
[1726103692378,11.46,134.06,134.02,3.3571]
[1726103693275,3.3565,134.05,134.01,3.3574]
[1726103696678,3.3565,134.05,134.02,3.3571]
[1726103699581,14.8163,134.06,134.02,14.8171]
[1726103700380,3.3563,134.06,134.02,14.8171]
[1726103700582,3.3561,134.07,134.03,14.8168]
[1726103700789,3.3561,134.07,134.03,11.46]
[1726103700986,2.7316,134.08,134.06,11.46]
[1726103701982,2.7316,134.08,134.06,14.816]
[1726103702182,1.3832,134.08,134.06,14.816]
[1726103702687,3.64713252,134.1,134.07,11.46]
[1726103702890,3.3549,134.11,134.07,11.46]
[1726103703283,7.0653615,134.11,134.07,11.46]
[1726103703892,7.0653615,134.11,134.06,3.356]
[1726103703893,15.1704615,134.11,134.06,11.46]
[1726103704388,11.46,134.1,134.01,4.0977]
[1726103704588,3.3556,134.09,134.04,14.8166]
[1726103704788,15.19992737,134.09,134.04,3.3566]
[1726103704980,16.55442737,134.09,134.04,3.3566]
[1726103705183,11.46,134.07,134.02,11.46]
[1726103705392,14.816,134.07,134.02,14.817]
[1726103705592,14.816,134.07,134.02,11.46]
[1726103705782,5.09442737,134.09,134.02,11.46]
[1726103705984,19.90982737,134.09,134.03,11.46]
[1726103706291,16.55442737,134.09,134.03,11.46]
[1726103707910,16.55442737,134.09,134.03,14.8169]
[1726103711005,11.46,134.08,134.02,11.46]
[1726103711211,11.46,134.07,134.02,3.3571]
[1726103712405,11.46,134.05,133.95,1.3669]
[1726103712601,11.46,134.05,133.99,11.46]
[1726103713897,11.46,134.05,134.0,3.3576]
[1726103714999,2.6934,134.08,134.0,3.3576]
[1726103715000,11.46,134.04,134.0,3.3576]
[1726103716005,11.46,134.04,133.97,11.46]
[1726103716205,11.46,134.06,134.0,11.46]
[1726103716408,11.46,134.06,134.01,3.3572]
[1726103717808,2.6934,134.08,134.02,3.3571]
[1726103718011,2.6934,134.08,134.04,11.46]
[1726103718309,1.3466,134.08,134.04,11.46]
[1726103718905,1.3555,134.15,134.07,11.46]
[1726103719106,15.35881286,134.14,134.07,11.46]
[1726103719310,14.165,134.14,134.07,11.46]
[1726103719520,6.0592,134.14,134.09,11.46]
[1726103719814,2.705,134.14,134.09,11.46]
[1726103720215,2.705,134.14,134.07,17.91]
[1726103720414,6.0593,134.14,134.09,3.3552]
[1726103720613,6.0593,134.14,134.07,17.91]
[1726103721819,6.0593,134.14,134.09,3.3554]
[1726103723813,3.70951321,134.15,134.11,3.3548]
[1726103724114,24.6119,134.27,134.09,17.91]
[1726103724115,20.6495,134.19,134.09,17.91]
[1726103724318,1.19330838,134.18,134.09,17.91]
[1726103724521,20.6495,134.19,134.09,17.91]
[1726103725220,2.7395,134.19,134.11,17.91]
[1726103725729,6.0925,134.19,134.14,3.354]
[1726103725924,2.7395,134.19,134.11,17.91]
[1726103726131,3.3535,134.17,134.11,3.3547]
[1726103726423,3.68104115,134.16,134.09,17.91]
[1726103727322,2.7395,134.19,134.13,3.3544]
[1726103728826,3.3532,134.18,134.13,3.3544]
[1726103732729,3.3535,134.17,134.12,3.3546]
[1726103732929,3.64104962,134.16,134.12,3.3546]
[1726103734125,6.99474962,134.16,134.12,3.3546]
[1726103735533,3.64104962,134.16,134.12,3.3546]
[1726103735724,3.3535,134.17,134.12,3.3546]
[1726103736230,3.66853691,134.16,134.12,3.3546]
[1726103739932,7.02223691,134.16,134.12,3.3546]
[1726103740431,3.66853691,134.16,134.12,3.3546]
[1726103740734,20.6495,134.19,134.12,3.3546]
[1726103740934,3.3534,134.17,134.12,3.3546]
[1726103741133,3.63732171,134.16,134.12,3.3546]
[1726103741525,20.6495,134.19,134.12,3.3546]
[1726103742341,14.8135,134.17,134.12,3.3546]
[1726103742542,3.72679158,134.16,134.12,3.3546]
[1726103743935,3.72679158,134.16,134.11,11.46]
[1726103744331,3.72679158,134.16,134.07,7.78410456]
[1726103744332,3.72679158,134.16,134.13,11.46]
[1726103744532,3.3533,134.18,134.13,14.8142]
[1726103744736,3.3533,134.18,134.13,11.46]
[1726103745441,3.3533,134.18,134.13,14.8143]
[1726103745942,3.3533,134.18,134.13,11.46]
[1726103745943,3.3535,134.17,134.13,11.46]
[1726103746241,3.79640686,134.16,134.13,11.46]
[1726103747034,3.79640686,134.16,134.13,14.8144]
[1726103747234,11.46,134.19,134.14,11.46]
[1726103747429,1.358,134.21,134.16,14.8134]
[1726103747634,16.1706,134.21,134.16,14.8134]
[1726103748544,3.3527,134.2,134.16,14.8134]
[1726103748941,16.1706,134.21,134.16,14.8134]
[1726103749844,4.7106,134.21,134.17,14.8134]
[1726103750041,4.6894,134.22,134.18,11.46]
[1726103750936,18.54297571,134.23,134.18,11.46]
[1726103751141,18.54297571,134.23,134.18,14.8131]
[1726103752242,3.3517,134.24,134.19,14.8128]
[1726103753038,7.02632067,134.25,134.21,11.46]
[1726103753245,3.67482067,134.25,134.21,11.46]
[1726103753444,11.46,134.26,134.21,11.46]
[1726103753839,14.8112,134.26,134.21,11.46]
[1726103754143,3.6874899,134.25,134.21,11.46]
[1726103755142,7.0390899,134.25,134.21,11.46]
[1726103761050,7.0390899,134.25,134.22,11.46]
[1726103761051,3.6874899,134.25,134.22,11.46]
[1726103761244,1.3879,134.28,134.23,11.46]
[1726103761445,1.3879,134.28,134.24,11.46]
[1726103761842,3.73370005,134.27,134.24,11.46]
[1726103762242,2.6869,134.34,134.24,11.46]
[1726103762445,11.46,134.3,134.24,3.3515]
[1726103762642,15.1415482,134.3,134.24,11.46]
[1726103763250,18.4917482,134.3,134.25,3.3512]
[1726103763442,7.0317482,134.3,134.24,11.46]
[1726103763849,18.4917482,134.3,134.24,11.46]
[1726103764451,3.3505,134.29,134.24,11.46]
[1726103765449,3.3508,134.28,134.24,11.46]
[1726103765647,11.46,134.34,134.27,11.46]
[1726103766245,3.74273401,134.34,134.29,11.46]
[1726103766547,11.46,134.34,134.29,11.46]
[1726103766853,3.3499,134.32,134.29,11.46]
[1726103767254,15.22694557,134.34,134.29,11.46]
[1726103767455,11.46,134.33,134.27,1.3376]
[1726103767657,11.46,134.3,134.27,1.3376]
[1726103767851,11.46,134.3,134.25,11.46]
[1726103767852,3.3508,134.28,134.25,11.46]
[1726103768053,15.23495023,134.3,134.23,2.7066]
[1726103768352,15.23495023,134.3,134.24,11.46]
[1726103768554,3.3511,134.27,134.24,11.46]
[1726103768754,3.3511,134.27,134.25,11.46]
[1726103769556,11.46,134.29,134.23,2.7066]
[1726103769857,11.46,134.28,134.23,1.3417]
[1726103770260,3.3514,134.25,134.23,1.3417]
[1726103770454,17.87,134.3,134.21,17.87]
[1726103770651,3.3517,134.24,134.21,17.87]
[1726103771459,3.352,134.23,134.21,17.87]
[1726103771759,17.87,134.26,134.19,1.3703]
[1726103772171,17.87,134.26,134.15,17.87]
[1726103772374,17.87,134.24,134.15,17.87]
[1726103772773,3.3526,134.21,134.15,21.2238]
[1726103773983,3.66777088,134.22,134.15,17.87]
[1726103774181,17.87,134.24,134.15,17.87]
[1726103774980,3.3526,134.21,134.15,21.2237]
[1726103775773,3.3527,134.2,134.15,21.2237]
[1726103776875,21.5588864,134.22,134.14,1.3703]
[1726103777175,17.87,134.22,134.14,1.3703]
[1726103777376,3.3533,134.18,134.14,1.3703]
[1726103777676,17.87,134.22,134.14,1.3703]
[1726103777677,21.57267315,134.22,134.14,1.3703]
[1726103778068,3.3533,134.18,134.14,1.3703]
[1726103778482,17.87,134.21,134.12,1.3402]
[1726103779273,3.3537,134.16,134.12,1.3402]
[1726103779481,17.87,134.21,134.09,3.3552]
[1726103779781,3.3541,134.15,134.09,21.2252]
[1726103780082,3.3541,134.15,134.09,17.87]
[1726103780673,3.3537,134.16,134.09,17.87]
[1726103781575,6.9927885,134.17,134.11,17.87]
[1726103781781,3.76965826,134.21,134.14,17.87]
[1726103781975,3.9569,134.23,134.14,17.87]
[1726103782175,3.3529,134.2,134.16,17.87]
[1726103782377,6.32951534,134.23,134.16,17.87]
[1726103782576,1.2888,134.27,134.18,17.87]
[1726103782780,4.0337,134.27,134.18,17.87]
[1726103783473,3.3522,134.22,134.18,17.87]
[1726103783673,4.0337,134.27,134.18,17.87]
[1726103784079,3.352,134.23,134.18,17.87]
[1726103784782,4.0337,134.27,134.18,21.2229]
[1726103784989,4.0337,134.27,134.18,17.87]
[1726103785375,3.3515,134.25,134.19,3.3529]
[1726103787486,3.3517,134.24,134.19,3.3529]
[1726103788381,4.0337,134.27,134.2,21.2226]